Cogmind - Beta 11 @@@ ROGUE MODE // 2022.03.26 @ 15:41:01 Player: bryce Result: Destroyed by H-61 Shepherd with Heavy Assault Cannon Performance ------------- Evolutions (2) 1000 Regions Visited (4) 800 Robots Destroyed (15) 75 Value Destroyed (428) 428 Prototype IDs (4) 80 Alien Tech Used (0) 0 Bonus (0) 0 TOTAL SCORE: 2383 Bonus ------- None Cogmind --------- Core Integrity 0/550 Matter 300/300 Energy 99/100 System Corruption 0% Temperature Cool (0) Movement Core (50) Location -8/Materials Parts ------- > --- POWER (2) -------- (None) > --- PROPULSION (4) --- (None) > --- UTILITY (3) ------ Terrain Scan Processor > --- WEAPON (2) ------- (None) > --- INVENTORY (5) ---- Light Ion Engine Improved Ion Engine Medium Storage Unit Small Battery (100) Datajack Peak State ------------ > --- POWER ------------ Light Deuterium Engine Light Nuclear Core > --- PROPULSION ------- Light Treads Light Treads Advanced Treads > --- UTILITY ---------- Medium Storage Unit ECM Suite Power Shielding > --- WEAPON ----------- Shock Rifle Improved Medium Laser > --- INVENTORY -------- Ion Engine Light Nuclear Core High-capacity Storage Unit Small Battery Terrain Scan Processor Assault Rifle Assault Rifle Datajack [Rating: 21] Favorites ----------- Power Ion Engine Engine Ion Engine Power Core Light Nuclear Core Propulsion Aluminum Leg Treads Light Treads Leg Aluminum Leg Flight Unit Flight Unit Utility ECM Suite Device ECM Suite Storage Medium Storage Unit Processor Terrain Scan Processor Protection Power Shielding Weapon Improved Medium Laser Energy Gun Improved Medium Laser Energy Cannon Heavy Particle Cannon Ballistic Gun Assault Rifle Build | -11 -10 -10 -9 -8 ------- Run | Scr Mat Min Mat Mat Slots Evolved 4 | . . . 2 2 Power 1 | . . . . 1 Propulsion 2 | . . . 1 1 Utility 1 | . . . 1 . Weapon . | . . . . . Parts Attached 42 | 6 2 . 9 25 Power 9 | 1 . . 2 6 Engine 7 | 1 . . 2 4 Core 2 | . . . . 2 Reactor . | . . . . . Propulsion 10 | 2 . . 2 6 Treads 4 | . . . . 4 Leg 4 | 2 . . 2 . Wheel . | . . . . . Hover . | . . . . . Flight 2 | . . . . 2 Utility 8 | 1 2 . 2 3 Device 2 | . 1 . . 1 Storage 3 | 1 . . 1 1 Processor 1 | . . . . 1 Hackware . | . . . . . Protection 2 | . 1 . 1 . Artifact . | . . . . . Weapon 15 | 2 . . 3 10 Energy Gun 6 | 1 . . 1 4 Energy Cannon 3 | . . . . 3 Ballistic Gun 6 | 1 . . 2 3 Ballistic Cannon . | . . . . . Launcher . | . . . . . Special Weapon . | . . . . . Impact Weapon . | . . . . . Slashing Weapon . | . . . . . Piercing Weapon . | . . . . . Special Melee Weapon . | . . . . . Unidentified Prototypes 2 | . . . 2 . Parts Lost 19 | . . 1 . 18 Power 3 | . . . . 3 Propulsion 8 | . . . . 8 Utility 2 | . . . . 2 Weapon 6 | . . 1 . 5 Highest Loss Streak 14 | . . 1 . 14 To Critical Strikes . | . . . . . Average Slot Usage (%) 86 | . 98 96 89 72 Engine 10 | . 14 14 11 7 Core 1 | . . . . 6 Treads 4 | . . . . 12 Leg 19 | . 28 28 23 7 Device 9 | . 7 14 11 7 Storage 10 | . 14 14 11 7 Protection 7 | . 5 . 11 6 Energy Gun 11 | . 14 10 10 9 Ballistic Gun 9 | . 14 14 11 3 Naked Turns 1 | . . . . 1 Heaviest Build 62 | 13 15 15 24 62 Greatest Support 82 | 20 20 20 30 82 Greatest Overweight (x) 1 | . . . 1 1 Average Overweight (x) . | . . . . . Largest Inventory Capacity 20 | 8 8 8 10 20 Average Capacity 10 | 7 8 8 9 13 Most Carried 10 | 4 7 7 10 10 Average Carried 7 | 1 4 7 9 7 Final Capacity 10 | 8 8 8 10 5 Final Carried 10 | 4 7 7 10 5 Class Distribution -------------------- 100% | Mutant Dominant Class ---------------- Mutant | -10/Materials Mutant | -10/Mines Mutant | -9/Materials Mutant | -8/Materials Resources | -11 -10 -10 -9 -8 ----------- Run | Scr Mat Min Mat Mat Matter Collected 649 | 157 107 . 46 339 Remotely . | . . . . . Salvage Created 537 | . 107 . 78 352 Parts 30 | . 3 . 7 20 Haulers Intercepted . | . . . . . Recyclers Shooed . | . . . . . Parts Field Recycled . | . . . . . Retrieved Matter . | . . . . . Parts Self-Destructed . | . . . . . Prevented . | . . . . . Kills | -11 -10 -10 -9 -8 ------- Run | Scr Mat Min Mat Mat Combat Hostiles Destroyed 13 | . . . 2 11 Melee 1 | . . . . 1 Guns 10 | . . . 2 8 Cannons 2 | . . . . 2 Classes Destroyed 5 | . 2 . 1 2 Recycler 1 | . 1 . . . Watcher 1 | . 1 . . . Swarmer 5 | . . . . 5 Grunt 6 | . . . 2 4 Sentry 2 | . . . . 2 Best Kill Streak 4 | . 2 . 2 4 Combat Bots Only 4 | . . . 2 4 Max Kills in Single Turn 1 | . 1 . 1 1 Gunslinging . | . . . . . Exploded . | . . . . . Melee 1 | . . . . 1 Uniques/NPCs Destroyed . | . . . . . Combat | -11 -10 -10 -9 -8 -------- Run | Scr Mat Min Mat Mat Damage Taken 2719 | . . 358 11 2350 Core 630 | . . 66 . 564 Absorbed by Shields . | . . . . . Redirected to Shielding 53 | . . . . 53 Core Remaining (%) 91 | 100 . 73 100 . Volleys Fired 42 | . 4 . 3 35 Largest 2 | . 2 . 2 2 Hottest 106 | . 60 . 79 106 Shots Fired 70 | . 8 . 6 56 Gun 60 | . 8 . 6 46 Cannon 10 | . . . . 10 Launcher . | . . . . . Special . | . . . . . Kinetic 22 | . 4 . 3 15 Thermal 39 | . 4 . 3 32 Explosive . | . . . . . Electromagnetic 9 | . . . . 9 Robot Hit Streak 8 | . 3 . 8 8 Robot Miss Streak 3 | . 2 . . 3 Penetration Max . | . . . . . Secondary Targets 1 | . . . . 1 Max Gunslinging Chain 1 | . . . . 1 Shots Hit Robots 41 | . 5 . 4 32 Core Hits 24 | . 2 . 2 20 Critical Kills . | . . . . . Critical Parts Destroyed 1 | . 1 . . . Critical Strikes 4 | . 1 . 1 2 Burn 3 | . . . 1 2 Destroy 1 | . 1 . . . Melee Attacks . | . . . . . Impact . | . . . . . Slashing . | . . . . . Piercing . | . . . . . Sneak Attacks . | . . . . . Combat Hostiles . | . . . . . Follow-up Attacks . | . . . . . Damage Inflicted 822 | . 60 8 71 683 Guns 616 | . 60 . 71 485 Cannons 196 | . . . . 196 Explosions . | . . . . . Melee . | . . . . . Ramming 10 | . . 8 . 2 Kinetic 218 | . 39 . 18 161 Thermal 557 | . 21 . 53 483 Explosive . | . . . . . Electromagnetic 37 | . . . . 37 Impact . | . . . . . Slashing . | . . . . . Piercing . | . . . . . Highest Corruption . | . . . . . Average Corruption . | . . . . . Corruption Purged . | . . . . . Corruption Blocked . | . . . . . Overload Shots . | . . . . . Overflow Damage . | . . . . . Projectiles . | . . . . . Explosions . | . . . . . Melee . | . . . . . Knockbacks . | . . . . . Impact . | . . . . . Kinetic . | . . . . . Secondary . | . . . . . Self-Inflicted Damage . | . . . . . Shots . | . . . . . Rammed . | . . . . . Targets Rammed 2 | . . 1 . 1 Kicked 1 | . . 1 . . Crushed 1 | . . . . 1 Highest Temperature 492 | . . . 15 492 Average Temperature 229 | . . . 6 241 Received Heat Transfer 1215 | . . 120 6 1089 Effects 15 | . . . . 15 Shutdowns 3 | . . . . 3 Interference 4 | . . . . 4 Matter Decay 1 | . . . . 1 Short Circuit 2 | . . . . 2 Damage (minor) 2 | . . . . 2 Damage (major) 3 | . . . . 3 Siege Activations . | . . . . . Robots Corrupted . | . . . . . Combat Hostiles . | . . . . . Parts Fried . | . . . . . Impact Corruptions . | . . . . . Robots Melted . | . . . . . Combat Hostiles . | . . . . . Parts Melted 1 | . . . . 1 Heat Transferred 1308 | . 50 . 185 1073 Parts Sabotaged . | . . . . . Parts Stolen . | . . . . . Parts Stripped . | . . . . . Power Chain Reactions . | . . . . . Missiles Intercepted . | . . . . . Alert | -11 -10 -10 -9 -8 ------- Run | Scr Mat Min Mat Mat Peak Influence 236 | . 42 51 89 236 Initial 19 | . . 16 19 . Average 52 | . 23 41 28 118 Maximum Alert Level 1 | . . . . 1 Low Security (%) 97 | 100 100 100 100 91 Level 1 2 | . . . . 8 Level 2 . | . . . . . Level 3 . | . . . . . Level 4 . | . . . . . Level 5 . | . . . . . High Security . | . . . . . Max Security . | . . . . . Squads Dispatched 4 | . 1 . . 3 Investigation 1 | . . . . 1 Extermination . | . . . . . Reinforcement 3 | . 1 . . 2 Assault . | . . . . . Garrison . | . . . . . Intercept . | . . . . . Searches Triggered . | . . . . . Construction Impeded 1 | . . . . 1 Haulers Reinforced . | . . . . . Active Scanning Responses . | . . . . . Cargo Convoy Interrupts . | . . . . . Stealth | -11 -10 -10 -9 -8 --------- Run | Scr Mat Min Mat Mat Distress Signals . | . . . . . Communications Jammed . | . . . . . Distress Signals . | . . . . . Times Spotted 38 | . 4 9 3 22 Peak Tracking Total 9 | . 2 9 2 8 Tactical Retreats 2 | . . 1 1 . Traps | -11 -10 -10 -9 -8 ------- Run | Scr Mat Min Mat Mat Traps Triggered 1 | . . . . 1 Indirectly . | . . . . . Trap Hack Attempts . | . . . . . Triggered . | . . . . . Disarmed . | . . . . . Reprogrammed . | . . . . . Reused . | . . . . . Traps Extracted . | . . . . . Installed . | . . . . . Triggered . | . . . . . Machines | -11 -10 -10 -9 -8 ---------- Run | Scr Mat Min Mat Mat Machines Disabled 1 | . . . . 1 Max in Single Turn 1 | . . . . 1 Machines Sabotaged . | . . . . . Garrisons Compromised . | . . . . . Overloaded Fab Kills . | . . . . . Hacking | -11 -10 -10 -9 -8 --------- Run | Scr Mat Min Mat Mat Machines Accessed 2 | . 1 . 1 . Terminals 2 | . 1 . 1 . Fabricators . | . . . . . Repair Stations . | . . . . . Recycling Units . | . . . . . Scanalyzers . | . . . . . Garrison Access . | . . . . . Total Hacks 3 | . 1 . 2 . Successful 1 | . 1 . . . Failed 2 | . . . 2 . Catastrophic . | . . . . . Database Lockouts . | . . . . . Manual . | . . . . . Terminals 3 | . 1 . 2 . Fabricators . | . . . . . Repair Stations . | . . . . . Recycling Units . | . . . . . Scanalyzers . | . . . . . Garrison Access . | . . . . . Terminal Hacks 1 | . 1 . . . Prototype ID Bank 1 | . 1 . . . Fabricator Hacks . | . . . . . Repair Station Hacks . | . . . . . Recycling Unit Hacks . | . . . . . Scanalyzer . | . . . . . Garrison Access Hacks . | . . . . . Unauthorized Hacks . | . . . . . Terminals . | . . . . . Fabricators . | . . . . . Repair Stations . | . . . . . Recycling Units . | . . . . . Scanalyzers . | . . . . . Garrison Access . | . . . . . Data Cores Recovered . | . . . . . Used . | . . . . . Hacking Detections 1 | . . . 1 . Full Trace Events . | . . . . . Feedback Events . | . . . . . Feedback Blocked . | . . . . . Robot Schematics Acquired . | . . . . . Robots Built . | . . . . . Authchips . | . . . . . Time . | . . . . . Total Robot Build Rating . | . . . . . Part Schematics Acquired . | . . . . . Parts Built . | . . . . . Authchips . | . . . . . Time . | . . . . . Total Part Build Rating . | . . . . . Parts Repaired . | . . . . . Time . | . . . . . Parts Recycled . | . . . . . Recycled Matter . | . . . . . Retrieved Matter . | . . . . . Retrieved Components . | . . . . . Parts Scanalyzed . | . . . . . Part Schematics Acquired . | . . . . . Parts Damaged . | . . . . . Bothacking | -11 -10 -10 -9 -8 ------------ Run | Scr Mat Min Mat Mat Used RIF Installer . | . . . . . Robots Hacked . | . . . . . Non-combat . | . . . . . Combat . | . . . . . Robot Hacks Applied . | . . . . . Relay Couplers Released . | . . . . . Fabnet Peak Effective % . | . . . . . Robots Rewired . | . . . . . Allies Hacked . | . . . . . Hacks Repelled . | . . . . . Allies | -11 -10 -10 -9 -8 -------- Run | Scr Mat Min Mat Mat Total Allies . | . . . . . Largest Group . | . . . . . Highest-Rated Group . | . . . . . Highest-Rated Ally . | . . . . . Total Orders . | . . . . . Ally Attacks . | . . . . . Total Damage . | . . . . . Kills . | . . . . . Allies Corrupted . | . . . . . Allies Melted . | . . . . . Intel | -11 -10 -10 -9 -8 ------- Run | Scr Mat Min Mat Mat Robot Analysis Total . | . . . . . Derelict Logs Recovered 1 | . . 1 . . Drone Launches . | . . . . . Drone Recoveries . | . . . . . Exploration | -11 -10 -10 -9 -8 ------------- Run | Scr Mat Min Mat Mat Turns Passed 1086 | 75 234 46 407 324 Spaces Moved 658 | 53 174 38 217 176 Core 43 | 3 . . . 40 Treads 54 | . . . . 54 Legs 506 | 50 174 38 217 27 Wheels . | . . . . . Hover . | . . . . . Flight 55 | . . . . 55 Fastest Speed 37 | 50 120 120 120 37 Average Speed 129 | 116 120 120 172 91 Slowest Speed 190 | 120 120 120 190 190 Overloaded Moves . | . . . . . Propulsion Burnouts . | . . . . . Robots Hopped . | . . . . . Cave-ins Triggered . | . . . . . Exploration Rate (%) 19 | 4 34 19 18 20 Regions Visited 4 Branch Regions 1 Pre-discovered Areas . | . . . . . Known Exits Taken . | . . . . . Unknown Exits Taken 4 | 1 1 1 1 . Scrap Searched . | . . . . . Spaces Dug . | . . . . . Terrain Destroyed 2 | . . . . 2 Melee . | . . . . . Projectile 2 | . . . . 2 AOE . | . . . . . Terrain Rammed . | . . . . . Walls Destroyed . | . . . . . Machines Disabled . | . . . . . Actions | -11 -10 -10 -9 -8 --------- Run | Scr Mat Min Mat Mat Total 816 | 63 190 38 243 282 Wait 32 | 1 8 . . 23 Move 654 | 52 173 37 216 176 Hop . | . . . . . Pick Up 22 | 4 3 . 8 7 Fast Attach 19 | 6 1 . 2 10 Attach 12 | . . . 2 10 Detach 4 | . . . 1 3 Swap 11 | . 1 . 5 5 Drop 18 | . . . 6 12 Fire 42 | . 4 . 3 35 Melee . | . . . . . Ram . | . . . . . Kick 1 | . . 1 . . Crush 1 | . . . . 1 Escape Stasis . | . . . . . Rewire . | . . . . . Trap . | . . . . . Miscellaneous . | . . . . . Route ------- -11/Scrapyard -10/Materials -10/Mines -9/Materials -8/Materials (discovered 1 exit: [*Fac]) History --------- Turn | Location | Event 10 | -11/Scrapyard | Discovered new exit (range 15) 76 | -11/Scrapyard | Entered Materials 254 | -10/Materials | Discovered new exit (range 12) 304 | -10/Materials | Build established: Mutant 310 | -10/Materials | Entered Mines 313 | -10/Mines | Learned Materials trap positions 348 | -10/Mines | Discovered new exit (range 8) 356 | -10/Mines | Entered Materials 356 | -9/Materials | Evolved 2 slots: Propulsion x1, Utility x1 357 | -9/Materials | Loaded intel: 22 trap records 724 | -9/Materials | Discovered new exit (range 16) 763 | -9/Materials | Entered another Materials area 763 | -8/Materials | Evolved 2 slots: Power x1, Propulsion x1 1023 | -8/Materials | Core integrity fell below 50% 1064 | -8/Materials | Lost 14 parts (3p4n2u5w) 1071 | -8/Materials | Core integrity fell below 20% 1084 | -8/Materials | Discovered new exit (range 10) 1087 | -8/Materials | Destroyed by H-61 Shepherd with Heavy Assault Cannon Last Messages --------------- 01039_ U-05 Engineer lays Concrete. 01048_ K-01 Serf collects debris. 01053_ Acquired Flight Unit. 01059_ Acquired Lgt. Ion Engine. 01066_ K-01 Serf collects debris. 01066_ Acquired 143 matter. 01068_ Flight Unit destroyed. 01068_ Dropped Imp. Ion Engine. 01068_ Dropped Ion Engine. 01069_ Acquired Imp. Ion Engine. 01079_ K-01 Serf cleans the Neutrino Reactor. 01083_ Slug penetrates Wall. 01084_ EXIT=FOUND 01085_ Penetrated by Slug. 01085_ Knocked back. 01085_ Neutrino Reactor explodes. 01085_ Door malfunctions. 01085_ K-01 Serf destroyed. 01085_ Flight Unit destroyed. 01085_ Door malfunctions. Map ----- +----------------------------------------------------+ | | | | | | | | | | | | | | | ?????????????????????????????????????????????????? | | ?????????????????????????????????????????????????? | | ?????????????????????????????????????????????????? | | ?????????????????????????????????????????????????? | | ?????????????????????????????????????????????????? | | ?????????????????????????????????????????????????? | | ?#+#####?????????????????????????????????????????? | | # ??????????????????????????????????????????? | | ##########????????????????????????????????????? | | # #????????????????????????????????????? | | " # #????????????????????????????????????? | | T # #????????????????????????????????????? | | " # #????????????????????????????????????? | | + #??????????#####?######??????????????? | | # #??????????# #? = #??????????????? | | # #??????????# < # ???????????????? | | # #??????????# # """ ???????????????? | | ! !# #??????????# + ""??????????????????? | | ###+####+############ @k#?????????????????????? | | # ### ## ## #?????????????????????? | | *%= = # ##%% ##????????????????????? | | ] *!% / ##########???????????? | | #### ###### k ??????????? | | #####+#####??# %! / H ??????????? | | # #??#! """ # ??????????? | | # #??# """ # ###+######???????????? | | # #??# """ #######????????????????????? | | # ! #??# #??????????????????????????? | | # #??##########??????????????????????????? | | # #??????????????????????????????????????? | | # ] #??????????????????????????????????????? | | # #??????????????????????????????????????? | | # #??????????????????????????????????????? | | ###########??????????????????????????????????????? | | ?????????????????????????????????????????????????? | | ?????????????????????????????????????????????????? | | ?????????????????????????????????????????????????? | | ?????????????????????????????????????????????????? | | ?????????????????????????????????????????????????? | | ?????????????????????????????????????????????????? | | ?????????????????????????????????????????????????? | | ?????????????????????????????????????????????????? | | ?????????????????????????????????????????????????? | +----------------------------------------------------+ Best States ------------- Heat Dissipation 31 Energy Generation 23 Energy Capacity 400 Matter Stores 300 Matter Capacity 300 Sight Range 16 Terrain Scan Density 85 ECM Strength 1 Power Shielding 33 Evasion (%) 62 Recoil Reduction 4 Item Schematics ----------------- None Robot Schematics ------------------ None Fabricated ------------ Nothing Alien Tech Used ----------------- None Achievements -------------- None Challenges ------------ None Game ------ Seed CombatLaserAutohacker Manual? 0 Play Time 00:26:05 Cumulative 15.4 hours Start 2022.03.26 @ 15:12:54 End 2022.03.26 @ 15:41:01 Sessions 1 Manual Loads 0 Difficulty Rogue Special Mode None Game No. 12 Rogue 12 Adventurer 0 Explorer 0 Win Type - Total 0 Types 0/0/0/0/0/0/0/0/0 Lore% 16 Gallery% 20 Achievement% 18 Wizard Run 0 Options --------- ASCII 0 Keyboard 0 Movement Mouse Keybinds 0 Fullscreen 1 Font 24/Smallcaps Map View 76x50 Tactical HUD 1 Map Filters NONE Filters NONE Steam 0 RUN: 88acfaea-df13-4976-b9e1-7782e1822349